fUST/lending_fUST_20250812
["ID","MTS","AMOUNT","RATE_DAILY","PERIOD"]
[378651131,1754943058492,-460.0,0.00019452,2]
[378651132,1754943058501,-151.0,0.00019452,2]
[378651133,1754943058511,-151.0,0.00019452,2]
[378651134,1754943058521,-151.0,0.00019452,2]
[378651135,1754943058530,-236.85490075,0.00019452,2]
[378651136,1754943058540,-463.61835215,0.00019452,2]
[378651137,1754943058550,-460.0,0.00019452,2]
[378651138,1754943058559,-460.0,0.00019452,2]
[378651139,1754943058569,-460.0,0.00019452,2]
[378651140,1754943058578,-460.0,0.00019452,2]
[378651141,1754943058588,-460.0,0.00019452,2]
[378651142,1754943058598,-964.3,0.00019452,2]
[378651143,1754943058608,-460.0,0.00019452,2]
[378651144,1754943058618,-460.0,0.00019452,2]
[378651145,1754943058627,-460.0,0.00019452,2]
[378651146,1754943058636,-460.0,0.00019452,2]
[378651147,1754943058648,-460.0,0.00019452,2]
[378651148,1754943058666,-460.0,0.00019452,2]
[378651149,1754943058685,-407.73537088,0.00019452,2]
[378651150,1754943058704,-4396.58,0.00019452,2]
[378651151,1754943058713,-460.0,0.00019452,2]
[378651152,1754943058723,-460.0,0.00019452,2]
[378651153,1754943058732,-557.46,0.00019452,2]
[378651154,1754943058742,-460.0,0.00019452,2]
[378651155,1754943058752,-460.0,0.00019452,2]
[378651156,1754943058762,-460.0,0.00019452,2]
[378651157,1754943058772,-460.0,0.00019452,2]
[378651158,1754943058781,-790.04,0.00019452,2]
[378651159,1754943058791,-460.0,0.00019452,2]
[378651160,1754943058801,-460.0,0.00019452,2]
[378651161,1754943058810,-496.31,0.00019452,2]
[378651162,1754943058820,-515.68,0.00019452,2]
[378651163,1754943058830,-461.72507265,0.00019452,2]
[378651164,1754943058839,-460.0,0.00019452,2]
[378651165,1754943058849,-460.0,0.00019452,2]
[378651166,1754943058858,-460.0,0.00019452,2]
[378651167,1754943058868,-1449.66,0.00019452,2]
[378651168,1754943058878,-460.0,0.00019452,2]
[378651169,1754943058887,-460.0,0.00019452,2]
[378651170,1754943058896,-460.0,0.00019452,2]
[378651171,1754943058906,-3988.05,0.00019452,2]
[378651172,1754943058916,-460.0,0.00019452,2]
[378651173,1754943058925,-460.0,0.00019452,2]
[378651174,1754943058935,-460.0,0.00019452,2]
[378651175,1754943058945,-694.91,0.00019452,2]
[378651176,1754943058955,-460.0,0.00019452,2]
[378651177,1754943058965,-460.0,0.00019452,2]
[378651178,1754943058975,-460.0,0.00019452,2]
[378651179,1754943058984,-697.08,0.00019452,2]
[378651180,1754943058994,-460.0,0.00019452,2]
[378651181,1754943059003,-460.0,0.00019452,2]
[378651182,1754943059014,-460.0,0.00019452,2]
[378651183,1754943059026,-460.0,0.00019452,2]
[378651184,1754943059040,-616.89,0.00019452,2]
[378651185,1754943059054,-460.0,0.00019452,2]
[378651186,1754943059069,-460.0,0.00019452,2]
[378651187,1754943059080,-151.0,0.00019452,2]
[378651188,1754943059093,-151.0,0.00019452,2]
[378651189,1754943059106,-460.0,0.00019452,2]
[378651190,1754943059119,-683.32,0.00019452,2]
[378651191,1754943059133,-460.0,0.00019452,2]
[378651192,1754943059147,-460.0,0.00019452,2]
[378651193,1754943059160,-460.0,0.00019452,2]
[378651194,1754943059178,-460.0,0.00019452,2]
[378651195,1754943059191,-868.01,0.00019452,2]
[378651196,1754943059203,-460.0,0.00019452,2]
[378651197,1754943059217,-460.0,0.00019452,2]
[378651198,1754943059229,-550.84,0.00019452,2]
[378651199,1754943059243,-460.0,0.00019452,2]
[378651200,1754943059258,-460.0,0.00019452,2]
[378651201,1754943059270,-460.0,0.00019452,2]
[378651202,1754943059281,-460.0,0.00019452,2]
[378651203,1754943059292,-460.0,0.00019452,2]
[378651204,1754943059304,-460.0,0.00019452,2]
[378651205,1754943059317,-460.0,0.00019452,2]
[378651206,1754943059330,-680.77,0.00019452,2]
[378651207,1754943059343,-460.0,0.00019452,2]
[378651208,1754943059356,-460.0,0.00019452,2]
[378651209,1754943059371,-483.28,0.00019452,2]
[378651210,1754943059384,-460.0,0.00019452,2]
[378651211,1754943059398,-580.22694274,0.00019452,2]
[378651212,1754943059408,-460.0,0.00019452,2]
[378651213,1754943059419,-460.0,0.00019452,2]
[378651214,1754943059430,-610.69,0.00019452,2]
[378651215,1754943059443,-460.0,0.00019452,2]
[378651216,1754943059457,-4646.38,0.00019452,2]
[378651217,1754943059472,-460.0,0.00019452,2]
[378651218,1754943059483,-460.0,0.00019452,2]
[378651219,1754943059495,-460.0,0.00019452,2]
[378651220,1754943059507,-1820.45,0.00019452,2]
[378651221,1754943059521,-607.28,0.00019452,2]
[378651222,1754943059532,-460.0,0.00019452,2]
[378651223,1754943059542,-460.0,0.00019452,2]
[378651224,1754943059553,-460.0,0.00019452,2]
[378651225,1754943059566,-460.0,0.00019452,2]
[378651226,1754943059578,-460.0,0.00019452,2]
[378651227,1754943059589,-460.0,0.00019452,2]
[378651228,1754943059601,-1470.64,0.00019452,2]
[378651229,1754943059612,-460.0,0.00019452,2]
[378651230,1754943059624,-460.0,0.00019452,2]
[378651231,1754943059638,-460.0,0.00019452,2]
[378651232,1754943059649,-460.0,0.00019452,2]
[378651233,1754943059660,-460.0,0.00019452,2]
[378651234,1754943059673,-460.0,0.00019452,2]
[378651235,1754943059685,-460.0,0.00019452,2]
[378651236,1754943059696,-460.0,0.00019452,2]
[378651237,1754943059708,-460.0,0.00019452,2]
[378651238,1754943059719,-460.0,0.00019452,2]
[378651239,1754943059731,-716.42,0.00019452,2]
[378651240,1754943059743,-1012.71,0.00019452,2]
[378651241,1754943059755,-1100.2,0.00019452,2]
[378651242,1754943059766,-460.0,0.00019452,2]
[378651243,1754943059777,-460.0,0.00019452,2]
[378651244,1754943059789,-460.0,0.00019452,2]
[378651245,1754943059800,-567.16,0.00019452,2]
[378651246,1754943059811,-460.0,0.00019452,2]
[378651247,1754943059824,-460.0,0.00019452,2]
[378651248,1754943059836,-460.0,0.00019452,2]
[378651249,1754943059848,-847.73,0.00019452,2]
[378651250,1754943059861,-480.35,0.00019452,2]
[378651251,1754943059873,-460.0,0.00019452,2]
[378651252,1754943059884,-460.0,0.00019452,2]
[378651253,1754943059896,-460.0,0.00019452,2]
[378651254,1754943059908,-460.0,0.00019452,2]
[378651255,1754943059920,-463.20317747,0.00019452,2]
[378651256,1754943059932,-460.0,0.00019452,2]
[378651257,1754943059944,-467.5314501,0.00019452,2]
[378651258,1754943059956,-1215.52,0.00019452,2]
[378651259,1754943059968,-460.0,0.00019452,2]
[378651260,1754943059980,-6777.27,0.00019452,2]
[378651261,1754943059992,-460.0,0.00019452,2]
[378651262,1754943060005,-460.0,0.00019452,2]
[378651263,1754943060017,-498.86,0.00019452,2]
[378651264,1754943060029,-460.0,0.00019452,2]
[378651265,1754943060043,-307.387825,0.00019452,2]
[378651266,1754943060057,-307.387825,0.00019452,2]
[378651267,1754943060073,-307.387825,0.00019452,2]
[378651268,1754943060085,-307.387825,0.00019452,2]
[378651269,1754943060097,-307.387825,0.00019452,2]
[378651270,1754943060109,-460.0,0.00019452,2]
[378651271,1754943060121,-989.6,0.00019452,2]
[378651272,1754943060132,-307.387825,0.00019452,2]
[378651273,1754943060143,-307.387825,0.00019452,2]
[378651274,1754943060155,-307.387825,0.00019452,2]
[378651275,1754943060168,-307.387825,0.00019452,2]
[378651276,1754943060179,-307.387829,0.00019452,2]
[378651277,1754943060191,-460.0,0.00019452,2]
[378651278,1754943060204,-299.325092,0.00019452,2]
[378651279,1754943060216,-460.0,0.00019452,2]
[378651280,1754943060228,-299.325092,0.00019452,2]
[378651281,1754943060240,-299.325092,0.00019452,2]
[378651282,1754943060252,-299.325092,0.00019452,2]
[378651283,1754943060264,-460.0,0.00019452,2]
[378651284,1754943060277,-676.015814,0.00019452,2]
[378651285,1754943060288,-518.74,0.00019452,2]
[378651286,1754943060300,-676.015814,0.00019452,2]
[378651287,1754943060312,-676.015814,0.00019452,2]
[378651288,1754943060327,-676.015814,0.00019452,2]
[378651289,1754943060339,-460.0,0.00019452,2]
[378651290,1754943060351,-299.325092,0.00019452,2]
[378651291,1754943060362,-460.0,0.00019452,2]
[378651292,1754943060373,-299.325092,0.00019452,2]
[378651293,1754943060385,-299.325092,0.00019452,2]
[378651294,1754943060397,-299.3251,0.00019452,2]
[378651295,1754943060409,-676.015814,0.00019452,2]
[378651296,1754943060420,-676.015814,0.00019452,2]
[378651297,1754943060431,-286.84872159,0.00019452,2]
[378651298,1754943060443,-676.015814,0.00019452,2]
[378651299,1754943060454,-676.015824,0.00019452,2]
[378651300,1754943060465,-460.0,0.00019452,2]
[378651301,1754943060480,-460.0,0.00019452,2]
[378651302,1754943060491,-460.0,0.00019452,2]
[378651303,1754943060502,-308.88903883,0.00019452,2]
[378651304,1754943060515,-460.0,0.00019452,2]
[378651305,1754943060528,-3802.57,0.00019452,2]
[378651306,1754943060540,-460.0,0.00019452,2]
[378651307,1754943060552,-688.97,0.00019452,2]
[378651308,1754943060564,-1790.35,0.00019452,2]
[378651309,1754943060579,-460.0,0.00019452,2]
[378651310,1754943060591,-460.0,0.00019452,2]
[378651311,1754943060602,-460.0,0.00019452,2]
[378651312,1754943060614,-460.0,0.00019452,2]
[378651313,1754943060626,-460.0,0.00019452,2]
[378651314,1754943060637,-460.0,0.00019452,2]
[378651315,1754943060649,-460.0,0.00019452,2]
[378651316,1754943060661,-477.37871123,0.00019452,2]
[378651317,1754943060672,-460.0,0.00019452,2]
[378651318,1754943060684,-460.0,0.00019452,2]
[378651319,1754943060698,-460.0,0.00019452,2]
[378651320,1754943060709,-2048.35,0.00019452,2]
[378651321,1754943060722,-463.62425837,0.00019452,2]
[378651322,1754943060733,-460.0,0.00019452,2]
[378651323,1754943060744,-460.0,0.00019452,2]
[378651324,1754943060756,-460.0,0.00019452,2]
[378651325,1754943060767,-850.68,0.00019452,2]
[378651326,1754943060779,-460.0,0.00019452,2]
[378651327,1754943060791,-460.0,0.00019452,2]
[378651328,1754943060802,-460.0,0.00019452,2]
[378651329,1754943060814,-460.0,0.00019452,2]
[378651330,1754943060825,-460.0,0.00019452,2]
[378651331,1754943060835,-460.0,0.00019452,2]
[378651332,1754943060844,-461.3,0.00019452,2]
[378651333,1754943060854,-1570.0,0.00019452,2]
[378651334,1754943060863,-460.0,0.00019452,2]
[378651335,1754943060873,-460.0,0.00019452,2]
[378651336,1754943060883,-1264.18,0.00019452,2]
[378651337,1754943060892,-460.0,0.00019452,2]
[378651338,1754943060901,-460.0,0.00019452,2]
[378651339,1754943060911,-151.0,0.00019452,2]
[378651340,1754943060921,-151.0,0.00019452,2]
[378651341,1754943060930,-460.0,0.00019452,2]
[378651342,1754943060940,-151.0,0.00019452,2]
[378651343,1754943060949,-636.02,0.00019452,2]
[378651344,1754943060959,-151.0,0.00019452,2]
[378651345,1754943060968,-460.0,0.00019452,2]
[378651346,1754943060978,-460.0,0.00019452,2]
[378651347,1754943060987,-460.0,0.00019452,2]
[378651348,1754943060997,-460.0,0.00019452,2]
[378651349,1754943061006,-1008.74,0.00019452,2]
[378651350,1754943061015,-460.0,0.00019452,2]
[378651351,1754943061025,-460.0,0.00019452,2]
[378651352,1754943061035,-460.0,0.00019452,2]
[378651353,1754943061044,-460.0,0.00019452,2]
[378651354,1754943061053,-460.0,0.00019452,2]
[378651355,1754943061063,-460.0,0.00019452,2]
[378651356,1754943061074,-460.0,0.00019452,2]
[378651357,1754943061083,-460.0,0.00019452,2]
[378651358,1754943061093,-211.943159,0.00019452,2]
[378651359,1754943061102,-211.943159,0.00019452,2]
[378651360,1754943061111,-1520.19,0.00019452,2]
[378651361,1754943061120,-211.943159,0.00019452,2]
[378651362,1754943061130,-211.943159,0.00019452,2]
[378651363,1754943061140,-211.943159,0.00019452,2]
[378651364,1754943061149,-3196.94,0.00019452,2]
[378651365,1754943061158,-460.0,0.00019452,2]
[378651366,1754943061168,-460.0,0.00019452,2]
[378651367,1754943061177,-1329.45,0.00019452,2]
[378651368,1754943061187,-460.0,0.00019452,2]
[378651369,1754943061196,-211.943159,0.00019452,2]
[378651370,1754943061206,-211.943159,0.00019452,2]
[378651371,1754943061216,-460.0,0.00019452,2]
[378651372,1754943061226,-460.0,0.00019452,2]
[378651373,1754943061561,-211.943159,0.00019452,2]
[378651374,1754943061580,-211.943159,0.00019452,2]
[378651375,1754943061591,-211.943158,0.00019452,2]
[378651376,1754943061601,-518.84,0.00019452,2]
[378651377,1754943061610,-460.0,0.00019452,2]
[378651378,1754943061619,-1092.65,0.00019452,2]
[378651379,1754943061628,-460.0,0.00019452,2]
[378651380,1754943061637,-460.0,0.00019452,2]
[378651381,1754943061646,-460.0,0.00019452,2]
[378651382,1754943061655,-460.0,0.00019452,2]
[378651383,1754943061664,-465.37403272,0.00019452,2]
[378651384,1754943061674,-460.0,0.00019452,2]
[378651385,1754943061683,-1200.23,0.00019452,2]
[378651386,1754943061692,-3248.12,0.00019452,2]
[378651387,1754943061702,-460.0,0.00019452,2]
[378651388,1754943061711,-643.77,0.00019452,2]
[378651389,1754943061721,-758.97,0.00019452,2]
[378651390,1754943061730,-460.0,0.00019452,2]
[378651391,1754943061739,-460.0,0.00019452,2]
[378651392,1754943061749,-460.0,0.00019452,2]
[378651393,1754943061758,-577.93,0.00019452,2]
[378651394,1754943061767,-460.0,0.00019452,2]
[378651395,1754943061775,-912.76,0.00019452,2]
[378651396,1754943061785,-1423.42,0.00019452,2]
[378651397,1754943061795,-1966.29,0.00019452,2]
[378651398,1754943061804,-530.64,0.00019452,2]
[378651399,1754943061813,-460.0,0.00019452,2]
[378651400,1754943061823,-460.0,0.00019452,2]
[378651401,1754943061833,-460.0,0.00019452,2]
[378651402,1754943061842,-745.5,0.00019452,2]
[378651403,1754943061851,-625.62,0.00019452,2]
[378651404,1754943061861,-460.0,0.00019452,2]
[378651405,1754943061870,-460.0,0.00019452,2]
[378651406,1754943061879,-5059.96,0.00019452,2]
[378651407,1754943061888,-460.0,0.00019452,2]
[378651408,1754943061898,-476.02068035,0.00019452,2]
[378651409,1754943061907,-460.0,0.00019452,2]
[378651410,1754943061916,-1745.15,0.00019452,2]
[378651411,1754943061925,-571.49,0.00019452,2]
[378651412,1754943061934,-460.0,0.00019452,2]
[378651413,1754943061944,-3976.54,0.00019452,2]
[378651414,1754943061953,-460.0,0.00019452,2]
[378651415,1754943061962,-460.0,0.00019452,2]
[378651416,1754943061972,-857.88,0.00019452,2]
[378651417,1754943061981,-460.0,0.00019452,2]
[378651418,1754943061991,-460.0,0.00019452,2]
[378651419,1754943062000,-4935.29,0.00019452,2]
[378651420,1754943062010,-460.0,0.00019452,2]
[378651421,1754943062019,-460.0,0.00019452,2]
[378651422,1754943062027,-2656.18,0.00019452,2]
[378651423,1754943062036,-5718.79,0.00019452,2]
[378651424,1754943062046,-460.0,0.00019452,2]
[378651425,1754943062055,-466.37,0.00019452,2]
[378651426,1754943062064,-460.0,0.00019452,2]
[378651427,1754943062074,-1260.9,0.00019452,2]
[378651428,1754943062083,-903.26,0.00019452,2]
[378651429,1754943062093,-460.0,0.00019452,2]
[378651430,1754943062102,-460.0,0.00019452,2]
[378651431,1754943062112,-519.21,0.00019452,2]
[378651432,1754943062121,-460.0,0.00019452,2]
[378651433,1754943062132,-3541.039696,0.00019452,2]
[378651434,1754943062141,-3541.039696,0.00019452,2]
[378651435,1754943062151,-3541.039696,0.00019452,2]
[378651436,1754943062160,-3541.039696,0.00019452,2]
[378651437,1754943062169,-460.0,0.00019452,2]
[378651438,1754943062178,-2771.89,0.00019452,2]
[378651439,1754943062187,-460.0,0.00019452,2]
[378651440,1754943062196,-3541.039696,0.00019452,2]
[378651441,1754943062205,-3541.039696,0.00019452,2]
[378651442,1754943062214,-2043.18,0.00019452,2]
[378651443,1754943062223,-3541.039696,0.00019452,2]
[378651444,1754943062233,-460.0,0.00019452,2]
[378651445,1754943062242,-460.0,0.00019452,2]
[378651446,1754943062252,-3541.03968709,0.00019452,2]
[378651447,1754943062261,-460.0,0.00019452,2]
[378651448,1754943062271,-224.77094593,0.00019452,2]
[378651449,1754943062281,-460.0,0.00019452,2]
[378651450,1754943062294,-460.0,0.00019452,2]
[378651451,1754943062304,-460.0,0.00019452,2]
[378651452,1754943062313,-460.0,0.00019452,2]
[378651453,1754943062322,-460.0,0.00019452,2]
[378651454,1754943062331,-1320.47,0.00019452,2]
[378651455,1754943062340,-1118.16,0.00019452,2]
[378651456,1754943062349,-1389.64,0.00019452,2]
[378651457,1754943062359,-460.0,0.00019452,2]
[378651458,1754943062368,-460.0,0.00019452,2]
[378651459,1754943062377,-460.0,0.00019452,2]
[378651460,1754943062388,-1502.3,0.00019452,2]
[378651461,1754943062397,-460.0,0.00019452,2]
[378651462,1754943062407,-460.0,0.00019452,2]
[378651463,1754943062418,-943.63,0.00019452,2]
[378651464,1754943062428,-696.69,0.00019452,2]
[378651465,1754943062437,-460.0,0.00019452,2]
[378651466,1754943062446,-802.17,0.00019452,2]
[378651467,1754943062456,-460.0,0.00019452,2]
[378651468,1754943062465,-780.61,0.00019452,2]
[378651469,1754943062478,-460.0,0.00019452,2]
[378651470,1754943062490,-460.0,0.00019452,2]
[378651471,1754943062500,-460.0,0.00019452,2]
[378651472,1754943062509,-1429.12,0.00019452,2]
[378651473,1754943062519,-2785.39,0.00019452,2]
[378651474,1754943062528,-460.0,0.00019452,2]
[378651475,1754943062537,-460.0,0.00019452,2]
[378651476,1754943062548,-460.0,0.00019452,2]
[378651477,1754943062559,-4346.86,0.00019452,2]
[378651478,1754943062568,-994.83,0.00019452,2]
[378651479,1754943062579,-460.0,0.00019452,2]
[378651480,1754943062588,-460.0,0.00019452,2]
[378651481,1754943062597,-460.0,0.00019452,2]
[378651482,1754943062607,-460.0,0.00019452,2]
[378651483,1754943062617,-460.0,0.00019452,2]
[378651484,1754943062626,-460.0,0.00019452,2]
[378651485,1754943062635,-460.0,0.00019452,2]
[378651486,1754943062645,-869.4,0.00019452,2]
[378651487,1754943062655,-460.0,0.00019452,2]
[378651488,1754943062664,-460.0,0.00019452,2]
[378651489,1754943062674,-2559.54,0.00019452,2]
[378651490,1754943062683,-460.0,0.00019452,2]
[378651491,1754943062692,-460.0,0.00019452,2]
[378651492,1754943062701,-460.0,0.00019452,2]
[378651493,1754943062710,-460.0,0.00019452,2]
[378651494,1754943062719,-460.0,0.00019452,2]
[378651495,1754943062728,-3059.79,0.00019452,2]
[378651496,1754943062737,-1543.47,0.00019452,2]
[378651497,1754943062746,-460.0,0.00019452,2]
[378651498,1754943062755,-460.0,0.00019452,2]
[378651499,1754943062764,-151.0,0.00019452,2]
[378651500,1754943062773,-151.0,0.00019452,2]
[378651501,1754943062783,-460.0,0.00019452,2]
[378651502,1754943062792,-151.0,0.00019452,2]
[378651503,1754943062801,-460.0,0.00019452,2]
[378651504,1754943062810,-460.0,0.00019452,2]
[378651505,1754943062819,-1410.25,0.00019452,2]
[378651506,1754943062829,-1709.79,0.00019452,2]
[378651507,1754943062838,-460.0,0.00019452,2]
[378651508,1754943062847,-460.0,0.00019452,2]
[378651509,1754943062856,-811.12,0.00019452,2]
[378651510,1754943062865,-213.72454386,0.00019452,2]
[378651511,1754943062874,-460.0,0.00019452,2]
[378651512,1754943062883,-1412.57,0.00019452,2]
[378651513,1754943062892,-4396.24,0.00019452,2]
[378651514,1754943062902,-460.0,0.00019452,2]
[378651515,1754943062911,-460.0,0.00019452,2]
[378651516,1754943062920,-559.21,0.00019452,2]
[378651517,1754943062929,-535.62,0.00019452,2]
[378651518,1754943062938,-460.0,0.00019452,2]
[378651519,1754943062948,-460.0,0.00019452,2]
[378651520,1754943062958,-460.0,0.00019452,2]
[378651521,1754943062967,-460.0,0.00019452,2]
[378651522,1754943062977,-460.0,0.00019452,2]
[378651523,1754943062986,-460.0,0.00019452,2]
[378651524,1754943062995,-460.0,0.00019452,2]
[378651525,1754943063005,-460.0,0.00019452,2]
[378651526,1754943063015,-1108.64,0.00019452,2]
[378651527,1754943063025,-460.0,0.00019452,2]
[378651528,1754943063035,-460.0,0.00019452,2]
[378651529,1754943063045,-460.0,0.00019452,2]
[378651530,1754943063055,-460.0,0.00019452,2]
[378651531,1754943063066,-460.0,0.00019452,2]
[378651532,1754943063077,-698.15,0.00019452,2]
[378651533,1754943063087,-2217.21,0.00019452,2]
[378651534,1754943063097,-766.11,0.00019452,2]
[378651535,1754943063107,-460.0,0.00019452,2]
[378651536,1754943063117,-13599.95,0.00019452,2]
[378651537,1754943063127,-473.35,0.00019452,2]
[378651538,1754943063138,-2539.91,0.00019452,2]
[378651539,1754943063148,-460.0,0.00019452,2]
[378651540,1754943063159,-460.0,0.00019452,2]
[378651541,1754943063169,-460.0,0.00019452,2]
[378651542,1754943063178,-460.0,0.00019452,2]
[378651543,1754943063188,-1608.86,0.00019452,2]
[378651544,1754943063197,-460.0,0.00019452,2]
[378651545,1754943063207,-460.0,0.00019452,2]
[378651546,1754943063217,-1070.97,0.00019452,2]
[378651547,1754943063227,-1536.96,0.00019452,2]
[378651548,1754943063237,-460.0,0.00019452,2]
[378651549,1754943063246,-460.0,0.00019452,2]
[378651550,1754943063257,-1218.5,0.00019452,2]
[378651551,1754943063266,-460.0,0.00019452,2]
[378651552,1754943063275,-460.0,0.00019452,2]
[378651553,1754943063285,-460.0,0.00019452,2]
[378651554,1754943063295,-750.53,0.00019452,2]
[378651555,1754943063304,-460.0,0.00019452,2]
[378651556,1754943063314,-460.0,0.00019452,2]
[378651557,1754943063325,-460.0,0.00019452,2]
[378651558,1754943063336,-479.39,0.00019452,2]
[378651559,1754943063346,-460.0,0.00019452,2]
[378651560,1754943063357,-460.0,0.00019452,2]
[378651561,1754943063367,-520.44,0.00019452,2]
[378651562,1754943063377,-2495.79,0.00019452,2]
[378651563,1754943063388,-460.0,0.00019452,2]
[378651564,1754943063399,-460.0,0.00019452,2]
[378651565,1754943063410,-460.0,0.00019452,2]
[378651566,1754943063420,-460.0,0.00019452,2]
[378651567,1754943063430,-200.0,0.00019453,15]
[378651568,1754943063440,-500.0,0.00019473,2]
[378651569,1754943063450,-281.26999205,0.00019473,2]
[378651570,1754943063460,-500.0,0.00019473,2]
[378651571,1754943063471,-500.0,0.00019473,2]
[378651572,1754943063483,-500.0,0.00019473,2]
[378651573,1754943063493,-500.0,0.00019473,2]
[378651574,1754943063503,-500.0,0.00019473,2]
[378651575,1754943063512,-500.0,0.00019473,2]
[378651576,1754943063523,-500.0,0.00019473,2]
[378651577,1754943063532,-338.07546911,0.00019473,2]
[378651578,1754943063542,-500.0,0.00019473,2]
[378651579,1754943063552,-500.0,0.00019473,2]
[378651580,1754943063562,-500.0,0.00019473,2]
[378651581,1754943063571,-600.0,0.00019473,2]
[378651582,1754943063580,-500.0,0.00019473,2]
[378651583,1754943063589,-500.0,0.00019473,2]
[378651584,1754943063597,-500.0,0.00019473,2]
[378651585,1754943063605,-500.0,0.00019473,2]
[378651586,1754943063614,-500.0,0.00019473,2]
[378651587,1754943063622,-500.0,0.00019473,2]
[378651588,1754943063631,-500.0,0.00019473,2]
[378651589,1754943063639,-500.0,0.00019473,2]
[378651590,1754943063647,-583.93173583,0.00019473,2]
[378651591,1754943063654,-349.65332276,0.00019473,2]
[378651592,1754943063663,-503.39649047,0.00019473,2]
[378651593,1754943063671,-150.0,0.00019473,2]
[378651594,1754943063679,-500.0,0.00019473,2]
[378651595,1754943063687,-500.0,0.00019473,2]
[378651596,1754943063697,-58.90891071,0.00019473,2]
[378651597,1754943063716,-202.5473623,0.00019473,2]
[378651598,1754943063724,-341.62190171,0.00019473,2]
[378651599,1754943063733,-500.0,0.00019473,2]
[378651600,1754943063742,-158.12880838,0.00019473,2]
[378651601,1754943063750,-500.0,0.00019473,2]
[378651602,1754943063760,-159.45114521,0.00019473,2]
[378651603,1754943063769,-160.06669641,0.00019473,2]
[378651604,1754943063779,-340.52011149,0.00019473,2]
[378651605,1754943063790,-158.46471794,0.00019473,2]
[378651606,1754943063799,-260.55026,0.00019473,2]
[378651607,1754943063808,-160.06680905,0.00019473,2]
[378651608,1754943063818,-158.46444877,0.00019473,2]
[378651609,1754943063829,-158.44868159,0.00019473,2]
[378651610,1754943063839,-158.04855828,0.00019473,2]
[378651611,1754943063848,-158.46538666,0.00019473,2]
[378651612,1754943063858,-165.05050708,0.00019473,2]
[378651613,1754943063868,-500.0,0.00019473,2]
[378651614,1754943063877,-500.0,0.00019473,2]
[378651615,1754943063888,-160.06318468,0.00019473,2]
[378651616,1754943063897,-157.46260862,0.00019473,2]
[378651617,1754943063907,-188.47570756,0.00019473,2]
[378651618,1754943063917,-168.46954688,0.00019473,2]
[378651619,1754943063926,-500.0,0.00019473,2]
[378651620,1754943063936,-158.46166641,0.00019473,2]
[378651621,1754943063946,-158.46577498,0.00019473,2]
[378651622,1754943063955,-340.91787696,0.00019473,2]
[378651623,1754943063965,-258.42704119,0.00019473,2]
[378651624,1754943063975,-158.46371259,0.00019473,2]
[378651625,1754943063984,-158.46341349,0.00019473,2]
[378651626,1754943063994,-160.06638324,0.00019473,2]
[378651627,1754943064004,-160.04917295,0.00019473,2]
[378651628,1754943064014,-160.46559195,0.00019473,2]
[378651629,1754943064023,-500.0,0.00019473,2]
[378651630,1754943064034,-158.46401038,0.00019473,2]